bitfinex/quotes_BTCUSD_20250211
["timestamp","ask_amount","ask_price","bid_price","bid_amount"]
[1739296566252,0.08270615,96194.0,96185.0,0.29078012]
[1739296566387,0.08270615,96194.0,96185.0,0.31196314]
[1739296566586,0.00122387,96186.0,96185.0,0.32296314]
[1739296567004,0.00222387,96186.0,96185.0,0.32896314]
[1739296568422,0.00222387,96186.0,96185.0,0.35290904]
[1739296568631,0.00222387,96186.0,96185.0,0.42978734]
[1739296569592,0.00222387,96186.0,96185.0,0.57978734]
[1739296570783,0.00222387,96186.0,96185.0,0.50290904]
[1739296571929,0.00222387,96186.0,96185.0,0.57090904]
[1739296572705,0.00022408,96204.0,96203.0,0.15592]
[1739296572912,0.00022408,96204.0,96203.0,0.33056035]
[1739296573087,0.00022408,96204.0,96203.0,0.48648035]
[1739296573324,0.00022408,96204.0,96203.0,0.39539326]
[1739296573749,0.00022408,96204.0,96203.0,0.42769063]
[1739296574113,0.00022408,96204.0,96203.0,0.45248695]
[1739296574706,0.00122408,96204.0,96203.0,0.46748695]
[1739296574907,0.08270615,96227.0,96226.0,0.155883]
[1739296575129,0.08270615,96227.0,96226.0,0.29476075]
[1739296575498,0.08270615,96238.0,96228.0,0.207837]
[1739296575708,0.08270615,96238.0,96226.0,0.10250365]
[1739296575910,0.007,96238.0,96221.0,0.207853]
[1739296576117,0.162864,96238.0,96224.0,0.155885]
[1739296576453,0.007,96238.0,96224.0,0.155885]
[1739296576841,0.007,96238.0,96225.0,0.155883]
[1739296577040,0.007,96238.0,96222.0,0.31085864]
[1739296577041,0.00022387,96242.0,96238.0,0.15]
[1739296577263,0.00022387,96242.0,96241.0,0.155858]
[1739296578546,0.00022387,96242.0,96241.0,0.25836165]
[1739296578833,0.00122387,96242.0,96241.0,0.27136165]
[1739296579029,0.00122387,96242.0,96241.0,0.29572397]
[1739296579257,0.00022387,96242.0,96241.0,0.155858]
[1739296579460,0.00122387,96242.0,96241.0,0.170858]
[1739296579641,0.00822387,96242.0,96241.0,0.021]
[1739296579864,0.16408087,96242.0,96241.0,0.021]
[1739296580007,0.00822387,96242.0,96241.0,0.015]
[1739296580209,0.00822387,96242.0,96241.0,0.022]
[1739296580598,0.00822387,96242.0,96241.0,0.015]
[1739296580792,0.00022387,96242.0,96241.0,0.004]
[1739296580993,0.00022387,96242.0,96238.0,0.155862]
[1739296581188,0.00122387,96242.0,96241.0,0.013]
[1739296581604,0.00022387,96242.0,96239.0,0.155861]
[1739296581806,0.00022387,96242.0,96236.0,0.155865]
[1739296582111,0.00022387,96242.0,96231.0,0.207833]
[1739296582112,0.00122387,96242.0,96241.0,0.008]
[1739296582569,0.00022387,96242.0,96241.0,0.004]
[1739296582771,0.00122387,96242.0,96241.0,0.004]
[1739296583387,0.00122387,96242.0,96241.0,0.03616094]
[1739296583514,0.00122387,96242.0,96241.0,0.03216094]
[1739296583939,0.001,98158.0,96236.0,0.155866]
[1739296584132,0.155847,96248.0,96241.0,0.008]
[1739296584356,0.001,96242.0,96241.0,0.163858]
[1739296584778,0.233244,96250.0,96237.0,0.20782]
[1739296584931,0.001,96242.0,96241.0,0.009]
[1739296585764,0.125446,96249.0,96241.0,0.004]
[1739296588442,0.155846,96249.0,96243.0,0.03216493]
[1739296588645,0.155848,96248.0,96238.0,0.003]
[1739296588869,0.1454617,96250.0,96239.0,0.03216983]
[1739296589079,0.4244057,96250.0,96249.0,0.007]
[1739296589291,0.278944,96250.0,96249.0,0.007]
[1739296589929,0.38144765,96250.0,96249.0,0.007]
[1739296590139,0.14820365,96250.0,96222.0,0.00050499]
[1739296590373,0.233278,96229.0,96223.0,0.03218612]
[1739296590598,0.0457,96228.0,96224.0,0.03218612]
[1739296590818,0.155887,96223.0,96222.0,0.00050499]
[1739296592653,0.236587,96223.0,96222.0,0.00050499]
[1739296593368,0.236587,96223.0,96222.0,0.00750499]
[1739296593601,0.236587,96223.0,96222.0,0.00050499]
[1739296593829,0.155897,96218.0,96204.0,0.0001066]
[1739296594058,0.155897,96218.0,96205.0,0.03223545]
[1739296594284,0.0817,96223.0,96206.0,0.03223545]
[1739296594511,0.155898,96217.0,96207.0,0.03223545]
[1739296594711,0.155899,96216.0,96208.0,0.03223545]
[1739296594913,0.0817,96223.0,96209.0,0.03223545]
[1739296595059,0.0807,96223.0,96210.0,0.03223545]
[1739296595266,0.236587,96223.0,96222.0,0.00022365]
[1739296595464,0.238587,96223.0,96222.0,0.00022365]
[1739296595681,0.238587,96223.0,96204.0,0.00060987]
[1739296595682,0.155897,96217.0,96203.0,0.1652314]
[1739296595936,0.155897,96217.0,96204.0,0.1822562]
[1739296596120,0.155897,96217.0,96205.0,0.0332562]
[1739296599039,0.155895,96219.0,96217.0,0.03229103]
[1739296599272,0.207853,96222.0,96217.0,0.03229103]
[1739296599481,0.0807,96223.0,96218.0,0.03229103]
[1739296599691,0.155894,96220.0,96219.0,0.03229103]
[1739296599867,0.0807,96223.0,96205.0,0.18971827]
[1739296600075,0.155895,96219.0,96216.0,0.001]
[1739296600274,0.155895,96219.0,96217.0,0.0323179]
[1739296600539,0.207856,96221.0,96218.0,0.0323179]
[1739296600743,0.207856,96221.0,96216.0,0.001]
[1739296600900,0.0807,96223.0,96217.0,0.03232228]
[1739296601103,0.155897,96217.0,96216.0,0.001]
[1739296601302,0.155897,96217.0,96216.0,0.03232771]
[1739296601505,0.207852,96222.0,96216.0,0.03232771]
[1739296601717,0.207852,96222.0,96205.0,0.15]
[1739296601929,0.155897,96217.0,96206.0,0.03232894]
[1739296602272,0.00775257,96221.0,96207.0,0.03232894]
[1739296602451,0.155899,96217.0,96208.0,0.03233505]
[1739296602660,0.00775257,96221.0,96209.0,0.03233505]
[1739296602879,0.155896,96218.0,96204.0,0.155918]
[1739296603081,0.155896,96218.0,96206.0,0.002]
[1739296603283,0.155896,96218.0,96207.0,0.03233607]
[1739296603450,0.155896,96218.0,96208.0,0.03233607]
[1739296603615,0.155897,96217.0,96206.0,0.003]
[1739296603882,0.00775257,96221.0,96207.0,0.03234179]
[1739296604193,0.00775257,96221.0,96208.0,0.03234179]
[1739296604425,0.00775257,96221.0,96209.0,0.03234179]
[1739296604629,0.155895,96219.0,96207.0,0.03234179]
[1739296604828,0.155895,96219.0,96208.0,0.03234179]
[1739296605057,0.155894,96219.0,96209.0,0.03234179]
[1739296605279,0.00775257,96221.0,96210.0,0.03234179]
[1739296605466,0.16364357,96221.0,96211.0,0.03234179]
[1739296605689,0.155893,96220.0,96207.0,0.155913]
[1739296605864,0.0807,96223.0,96210.0,0.1454617]
[1739296606002,0.155891,96221.0,96211.0,0.03235665]
[1739296606203,0.0807,96223.0,96210.0,0.1454617]
[1739296606448,0.0807,96223.0,96211.0,0.03236385]
[1739296606667,0.0807,96223.0,96214.0,0.155901]
[1739296606855,0.0807,96223.0,96215.0,0.03236385]
[1739296607031,0.0807,96223.0,96216.0,0.03236385]
[1739296607237,0.0807,96223.0,96215.0,0.03236385]
[1739296607586,0.155889,96222.0,96211.0,0.003]
[1739296607785,0.155891,96221.0,96211.0,0.003]
[1739296608008,0.0807,96223.0,96212.0,0.03236606]
[1739296608226,0.288552,96223.0,96211.0,0.003]
[1739296608409,0.0807,96223.0,96215.0,0.0051065]
[1739296608557,0.155889,96222.0,96215.0,0.0051065]
[1739296608756,0.0807,96223.0,96215.0,0.0001065]
[1739296609223,0.0807,96223.0,96216.0,0.003]
[1739296609429,0.236588,96223.0,96216.0,0.003]
[1739296609586,0.0807,96223.0,96215.0,0.0001065]
[1739296609987,0.15589,96222.0,96215.0,0.0001065]
[1739296610193,0.15589,96222.0,96215.0,0.0021065]
[1739296610591,0.0807,96223.0,96215.0,0.0001065]
[1739296611073,0.236588,96223.0,96215.0,0.0021065]
[1739296611255,0.236588,96223.0,96215.0,0.0051065]
[1739296611422,0.0807,96223.0,96215.0,0.0051065]
[1739296611623,0.155889,96222.0,96215.0,0.0051065]
[1739296611939,0.155899,96216.0,96215.0,0.0051065]
[1739296612136,0.207852,96222.0,96215.0,0.0051065]
[1739296612324,0.155891,96221.0,96215.0,0.0051065]
[1739296612527,0.155893,96220.0,96215.0,0.0031065]
[1739296612728,0.155896,96218.0,96215.0,0.0031065]
[1739296612923,0.0807,96223.0,96215.0,0.0031065]
[1739296613131,0.155894,96220.0,96215.0,0.0051065]
[1739296613344,0.0807,96223.0,96215.0,0.0031065]
[1739296613545,0.207856,96221.0,96215.0,0.0061065]
[1739296613796,0.155896,96218.0,96215.0,0.0061065]
[1739296613966,0.155896,96218.0,96215.0,0.0031065]
[1739296614166,0.155896,96218.0,96215.0,0.0051065]
[1739296614379,0.281799,96216.0,96215.0,0.0021065]
[1739296614552,0.281799,96216.0,96215.0,0.0001065]
[1739296614762,0.281799,96216.0,96215.0,0.0041065]
[1739296615254,0.281799,96216.0,96215.0,0.0001065]
[1739296615660,0.281799,96216.0,96215.0,0.0041065]
[1739296615860,0.37183354,96216.0,96215.0,0.0041065]
[1739296616839,0.37183354,96216.0,96215.0,0.0051065]
[1739296617071,0.37959998,96216.0,96215.0,0.0011065]
[1739296617405,0.38259998,96216.0,96215.0,0.0001065]
[1739296617610,0.38359998,96216.0,96215.0,0.0001065]
[1739296617809,0.28956544,96216.0,96215.0,0.0001065]
[1739296618089,0.29456544,96216.0,96215.0,0.0001065]
[1739296619749,0.60099079,96216.0,96215.0,0.0001065]
[1739296623075,0.59322435,96216.0,96215.0,0.0001065]
[1739296623292,0.6379612,96216.0,96215.0,0.0001065]
[1739296624114,0.59322435,96216.0,96215.0,0.0001065]
[1739296626560,0.60099979,96216.0,96215.0,0.0001065]
[1739296629226,0.62044118,96216.0,96215.0,0.0001065]
[1739296629979,0.61266574,96216.0,96215.0,0.0001065]
[1739296636213,0.6128894,96216.0,96215.0,0.0001065]
[1739296639613,0.4569904,96216.0,96215.0,0.0001065]
[1739296639811,0.3310904,96216.0,96215.0,0.0001065]
[1739296640192,0.3310904,96216.0,96215.0,0.03254674]
[1739296640794,0.3260904,96216.0,96215.0,0.03254674]
[1739296641033,0.3260904,96216.0,96215.0,0.03554674]
[1739296641180,0.3260904,96216.0,96215.0,0.03754674]
[1739296641421,0.3260904,96216.0,96215.0,0.0051065]
[1739296642400,0.4819894,96216.0,96215.0,0.0051065]
[1739296642758,0.3260904,96216.0,96215.0,0.0051065]
[1739296643168,0.4819894,96216.0,96215.0,0.0051065]
[1739296643499,0.17556405,96216.0,96215.0,0.0051065]
[1739296644112,0.01966505,96216.0,96215.0,0.0051065]
[1739296644880,0.17556405,96216.0,96215.0,0.0051065]
[1739296645293,0.25196405,96216.0,96215.0,0.0051065]
[1739296646204,0.33951786,96216.0,96215.0,0.0051065]
[1739296646639,0.44202151,96216.0,96215.0,0.0051065]
[1739296646818,0.48702151,96216.0,96215.0,0.0051065]
[1739296647020,0.79344686,96216.0,96215.0,0.0051065]
[1739296647222,0.81644686,96216.0,96215.0,0.0051065]
[1739296648072,0.81644686,96216.0,96206.0,0.0001065]
[1739296648073,0.277313,96207.0,96206.0,0.0001065]
[1739296648275,0.46991105,96207.0,96206.0,0.0001065]
[1739296649057,0.37981665,96207.0,96206.0,0.0001065]
[1739296649266,0.40625804,96207.0,96206.0,0.0011065]
[1739296649502,0.57925804,96207.0,96206.0,0.0011065]
[1739296651004,0.58425804,96207.0,96206.0,0.0011065]
[1739296651179,0.57725804,96207.0,96206.0,0.0001065]
[1739296651396,0.67976169,96207.0,96206.0,0.0001065]
[1739296651590,0.69376169,96207.0,96206.0,0.0011065]
[1739296652411,1.55710387,96207.0,96206.0,0.0011065]
[1739296654426,1.53766248,96207.0,96206.0,0.0011065]
[1739296654639,1.51466248,96207.0,96206.0,0.0011065]
[1739296654842,1.41215883,96207.0,96206.0,0.0011065]
[1739296658281,0.87425883,96207.0,96206.0,0.0011065]
[1739296658493,0.89725883,96207.0,96206.0,0.0011065]
[1739296660283,0.91662682,96207.0,96206.0,0.0011065]
[1739296660491,1.01913047,96207.0,96206.0,0.0011065]
[1739296664266,1.55703047,96207.0,96206.0,0.0011065]
[1739296667132,1.55575716,96207.0,96206.0,0.0011065]
[1739296668193,1.45325351,96207.0,96206.0,0.0011065]
[1739296668872,1.4512162,96207.0,96206.0,0.0011065]
[1739296671070,1.2782162,96207.0,96206.0,0.0011065]
[1739296671234,1.2332162,96207.0,96206.0,0.0011065]
[1739296671476,1.1568162,96207.0,96206.0,0.0011065]
[1739296671680,1.154475,96207.0,96206.0,0.0011065]
[1739296671925,1.25697865,96207.0,96206.0,0.0011065]
[1739296672830,1.154475,96207.0,96206.0,0.0011065]
[1739296673028,1.149475,96207.0,96206.0,0.0011065]
[1739296673208,1.135475,96207.0,96206.0,0.0001065]
[1739296673559,1.148475,96207.0,96206.0,0.0011065]
[1739296673980,1.03597135,96207.0,96206.0,0.0001065]
[1739296674207,1.03597135,96207.0,96206.0,0.0011065]
[1739296674369,1.04497135,96207.0,96206.0,0.0011065]
[1739296674585,1.04797135,96207.0,96206.0,0.0011065]
[1739296674786,1.03297135,96207.0,96206.0,0.0001065]
[1739296675138,1.04097135,96207.0,96206.0,0.0011065]
[1739296676086,0.02736799,96207.0,96206.0,0.0011065]
[1739296676662,0.008,96207.0,96206.0,0.0011065]
[1739296677175,0.002,96207.0,96206.0,0.0001065]
[1739296677396,0.155913,96207.0,96206.0,0.0011065]
[1739296677572,0.155913,96207.0,96206.0,0.0021065]
[1739296683073,0.155913,96207.0,96206.0,0.0011065]
[1739296683274,0.158913,96207.0,96206.0,0.0001065]
[1739296683728,0.159913,96207.0,96206.0,0.0001065]
[1739296683938,0.156913,96207.0,96206.0,0.0001065]
[1739296684140,0.16113666,96207.0,96206.0,0.0001065]
[1739296684503,0.15713666,96207.0,96206.0,0.0001065]
[1739296685859,0.16013666,96207.0,96206.0,0.0001065]
[1739296686061,0.16113666,96207.0,96206.0,0.0001065]
[1739296686273,0.16013666,96207.0,96206.0,0.0001065]
[1739296686691,0.15713666,96207.0,96206.0,0.0001065]
[1739296686894,0.16113666,96207.0,96206.0,0.0001065]
[1739296690520,0.00522366,96207.0,96206.0,0.1560215]
[1739296690727,0.00522366,96207.0,96206.0,0.0001065]
[1739296691153,0.00522366,96207.0,96206.0,0.1884339]
[1739296692005,0.00122366,96207.0,96206.0,0.1884339]
[1739296692328,0.00122366,96207.0,96206.0,0.1894339]
[1739296692480,0.00022366,96207.0,96206.0,0.1894339]
[1739296692680,0.00022366,96215.0,96206.0,0.1894339]
[1739296692681,0.00022366,96215.0,96211.0,0.155906]
[1739296693290,0.00022366,96215.0,96211.0,0.21448395]
[1739296693492,0.00022366,96215.0,96211.0,0.05857795]
[1739296693699,0.00022366,96215.0,96211.0,0.155907]
[1739296693901,0.00122366,96215.0,96211.0,0.169907]
[1739296694317,0.00122366,96215.0,96214.0,0.155902]
[1739296695116,0.00022366,96215.0,96214.0,0.155902]
[1739296695468,0.00122366,96215.0,96214.0,0.164902]
[1739296695671,0.00122366,96215.0,96214.0,0.222967]
[1739296695957,0.00122366,96215.0,96214.0,0.169902]
[1739296708359,0.00122366,96215.0,96214.0,0.014]
[1739296711607,0.00122366,96215.0,96214.0,0.169902]
[1739296712188,0.00122366,96215.0,96214.0,0.014]
[1739296712388,0.00122366,96215.0,96214.0,0.169902]
[1739296712566,0.00122366,96215.0,96214.0,0.18690285]
[1739296713337,0.00122366,96215.0,96214.0,0.03100085]
[1739296713633,0.00122366,96215.0,96214.0,0.27240565]
[1739296713864,0.00122366,96215.0,96214.0,0.30482485]
[1739296714980,0.00122366,96215.0,96214.0,0.45482485]
[1739296716302,0.155879,96229.0,96222.0,0.155889]
[1739296716639,0.155881,96227.0,96220.0,0.155891]
[1739296716842,0.155881,96227.0,96221.0,0.08335803]
[1739296717083,0.0453,96234.0,96221.0,0.08335803]
[1739296717084,0.155881,96228.0,96221.0,0.23924903]
[1739296717285,0.207832,96232.0,96221.0,0.08335803]
[1739296717485,0.155881,96227.0,96221.0,0.08335803]
[1739296718086,0.15588,96228.0,96221.0,0.23924803]
[1739296718287,0.155881,96227.0,96220.0,0.155891]
[1739296718538,0.15588,96228.0,96219.0,0.1454617]
[1739296718706,0.001,96232.0,96220.0,0.155891]
[1739296718912,0.156881,96228.0,96222.0,0.155889]
[1739296719126,0.156881,96228.0,96223.0,0.07349057]
[1739296719428,0.156881,96228.0,96222.0,0.155889]
[1739296719582,0.156881,96228.0,96221.0,0.001]
[1739296719583,0.001,96228.0,96221.0,0.001]
[1739296719791,0.001,96228.0,96227.0,0.155881]
[1739296719991,0.001,96228.0,96227.0,0.25838465]
[1739296720176,0.001,96228.0,96227.0,0.29079931]
[1739296720764,0.0788,96242.0,96238.0,0.155863]
[1739296720894,0.0788,96242.0,96236.0,0.155866]
[1739296721102,0.155858,96241.0,96236.0,0.155866]
[1739296721337,0.0788,96242.0,96237.0,0.155864]
[1739296721903,0.0788,96242.0,96237.0,0.15636795]
[1739296722132,0.0788,96242.0,96237.0,0.00050395]
[1739296722538,0.0798,96242.0,96238.0,0.155863]
[1739296722739,0.0798,96242.0,96237.0,0.00750395]
[1739296722939,0.0798,96242.0,96240.0,0.155859]
[1739296723266,0.0798,96242.0,96239.0,0.155861]
[1739296723682,0.0798,96242.0,96238.0,0.155863]
[1739296723883,0.234658,96242.0,96237.0,0.00450395]
[1739296724226,0.0798,96242.0,96238.0,0.007]
[1739296724418,0.155859,96241.0,96238.0,0.007]
[1739296724721,0.155859,96241.0,96237.0,0.00050395]
[1739296725225,0.235657,96242.0,96239.0,0.004]
[1739296725404,0.155859,96241.0,96237.0,0.00050395]
[1739296725743,0.155859,96241.0,96238.0,0.004]
[1739296725882,0.156859,96241.0,96237.0,0.00850395]
[1739296726230,0.156859,96241.0,96237.0,0.01250395]
[1739296726385,0.001,96241.0,96238.0,0.0324106]
[1739296726587,0.001,96241.0,96237.0,0.01250395]
[1739296726784,0.001,96241.0,96238.0,0.03240605]
[1739296726986,0.001,96241.0,96237.0,0.01250395]
[1739296727194,0.001,96241.0,96238.0,0.032406]
[1739296727391,0.001,96241.0,96237.0,0.01250395]
[1739296727619,0.155859,96241.0,96237.0,0.00450395]
[1739296727817,0.001,96241.0,96238.0,0.008]
[1739296728350,0.234658,96242.0,96237.0,0.00450395]
[1739296728709,0.001,96241.0,96237.0,0.01250395]
[1739296728922,0.001,96241.0,96237.0,0.00850395]
[1739296729247,0.0788,96242.0,96238.0,0.004]
[1739296729446,0.234657,96242.0,96238.0,0.004]
[1739296729671,0.235657,96242.0,96237.0,0.00750395]
[1739296729849,0.155859,96241.0,96237.0,0.01150395]
[1739296730275,0.0798,96242.0,96237.0,0.01150395]
[1739296730573,0.235657,96242.0,96237.0,0.01150395]
[1739296730972,0.235657,96242.0,96237.0,0.00750395]
[1739296731279,0.234657,96242.0,96238.0,0.004]
[1739296731573,0.001,96241.0,96237.0,0.00850395]
[1739296731750,0.001,96241.0,96237.0,0.01250395]
[1739296731998,0.234657,96242.0,96237.0,0.00450395]
[1739296732328,0.0788,96242.0,96237.0,0.00050395]
[1739296732661,0.0798,96242.0,96237.0,0.00750395]
[1739296733047,0.0798,96242.0,96237.0,0.01150395]
[1739296733620,0.0001066,96241.0,96237.0,0.01150395]
[1739296734205,0.0001066,96241.0,96237.0,0.00450395]
[1739296734616,0.0001066,96241.0,96237.0,0.00850395]
[1739296734840,0.0001066,96241.0,96237.0,0.00450395]
[1739296735423,0.0011066,96241.0,96237.0,0.00550395]
[1739296735720,0.0011066,96241.0,96237.0,0.00850395]
[1739296737851,0.0011066,96241.0,96238.0,0.03238998]
[1739296738053,0.0011066,96241.0,96237.0,0.00850395]
[1739296738879,0.0001066,96241.0,96237.0,0.00350395]
[1739296739093,0.0001066,96241.0,96238.0,0.13488987]
[1739296739234,0.0001066,96241.0,96240.0,0.15586]
[1739296739437,0.0011066,96241.0,96240.0,0.29074987]
[1739296739673,0.0011066,96241.0,96240.0,0.44074987]
[1739296739912,0.0011066,96241.0,96240.0,0.54325352]
[1739296740371,0.0011066,96241.0,96240.0,0.44074987]
[1739296740750,0.0001066,96241.0,96240.0,0.44074987]
[1739296741174,0.0011066,96241.0,96240.0,0.44874987]
[1739296741665,0.0011066,96241.0,96240.0,0.46113425]
[1739296741880,0.0001066,96241.0,96240.0,0.46113425]
[1739296742084,0.0021066,96241.0,96240.0,0.48113425]
[1739296752738,0.00022408,96253.0,96248.0,0.155845]
[1739296753079,0.00022408,96253.0,96249.0,0.03238622]
[1739296753256,0.00022408,96253.0,96250.0,0.03238622]
[1739296753460,0.00022408,96253.0,96251.0,0.03238622]
[1739296753635,0.00022408,96253.0,96252.0,0.03238622]
[1739296755130,0.00022408,96253.0,96252.0,0.04038622]
[1739296755538,0.00022408,96253.0,96252.0,0.05942484]
[1739296755745,0.00022408,96253.0,96252.0,0.21526484]
[1739296755947,0.00022408,96253.0,96252.0,0.04038622]
[1739296756952,0.00022408,96253.0,96252.0,0.29872987]
[1739296757897,0.00022408,96253.0,96252.0,0.44872987]
[1739296758551,0.00022408,96253.0,96252.0,0.44072987]
[1739296758861,0.00022408,96253.0,96252.0,0.44372987]
[1739296759022,0.00022387,96259.0,96258.0,0.305831]
[1739296759232,0.00022387,96259.0,96258.0,0.44072087]
[1739296759638,5.72e-06,96259.0,96258.0,0.44072087]
[1739296760264,5.72e-06,96259.0,96258.0,0.45462087]
[1739296760462,5.72e-06,96259.0,96258.0,0.50925758]
[1739296760663,0.00100572,96259.0,96258.0,0.50925758]
[1739296760866,0.00200572,96259.0,96258.0,0.51525758]
[1739296761206,5.72e-06,96259.0,96258.0,0.50427199]
[1739296761385,0.00100572,96259.0,96258.0,0.51627199]
[1739296761712,0.00100572,96259.0,96258.0,0.52327199]
[1739296761842,0.00100572,96259.0,96258.0,0.32480428]
[1739296762041,0.00100572,96259.0,96258.0,0.48063528]
[1739296762701,5.72e-06,96259.0,96258.0,0.46863528]
[1739296763126,0.00100572,96259.0,96258.0,0.47663528]
[1739296763283,0.00100572,96259.0,96258.0,0.57515402]
[1739296763490,5.72e-06,96259.0,96258.0,0.56015402]
[1739296763708,5.72e-06,96259.0,96258.0,0.57915402]
[1739296763907,0.00100572,96259.0,96258.0,0.57315402]
[1739296764311,0.00100572,96259.0,96258.0,0.57915402]
[1739296764516,0.00100572,96259.0,96258.0,0.57315402]
[1739296764693,5.72e-06,96259.0,96258.0,0.56015402]
[1739296765328,5.72e-06,96259.0,96258.0,0.56715402]
[1739296765924,0.00100572,96259.0,96258.0,0.58215402]
[1739296770432,0.00022387,96264.0,96263.0,0.328823]
[1739296770583,0.00022387,96264.0,96263.0,0.47794827]
[1739296770781,0.00022387,96264.0,96263.0,1.00507949]
[1739296770988,0.00022387,96264.0,96263.0,1.04921349]
[1739296771315,0.00022387,96264.0,96263.0,1.18185449]
[1739296771934,0.00022387,96264.0,96263.0,1.13289049]
[1739296772635,0.00022387,96264.0,96263.0,0.95241449]
[1739296773179,0.00022387,96264.0,96263.0,0.83163449]
[1739296773410,0.00022387,96264.0,96263.0,0.84814221]
[1739296773598,0.00022387,96264.0,96263.0,0.85514221]
[1739296774177,0.00022387,96264.0,96263.0,0.87014221]
[1739296774386,0.00022387,96264.0,96263.0,0.86314221]
[1739296774593,0.00022387,96264.0,96263.0,0.84814221]
[1739296774792,0.00022387,96264.0,96263.0,0.85514221]
[1739296774997,0.00022387,96264.0,96263.0,0.84714221]
[1739296775454,0.00022387,96264.0,96263.0,0.80052059]
[1739296775993,0.00022387,96264.0,96263.0,0.78401287]
[1739296777139,0.00022387,96264.0,96263.0,0.46271287]
[1739296779028,0.0757,96276.0,96271.0,0.30581]
[1739296779223,0.0757,96276.0,96271.0,0.44069987]
[1739296779465,0.0757,96276.0,96271.0,0.50554476]
[1739296780183,0.0757,96276.0,96271.0,0.52004871]
[1739296780390,0.0757,96276.0,96271.0,0.52704871]
[1739296783386,0.00022408,96288.0,96271.0,0.52704871]
[1739296791443,0.079,96276.0,96271.0,0.52704871]
[1739296791791,0.079,96276.0,96271.0,0.46220382]
[1739296793814,0.07783794,96276.0,96271.0,0.30639382]
[1739296794021,0.07783794,96276.0,96275.0,0.305803]
[1739296794238,0.07783794,96276.0,96275.0,0.44069287]
[1739296797078,0.07783794,96276.0,96275.0,0.44669287]
[1739296797275,0.07783794,96276.0,96275.0,0.45169287]
[1739296797477,0.07783794,96276.0,96275.0,0.45869287]
[1739296797710,0.07783794,96276.0,96275.0,0.55019652]
[1739296798962,0.00022408,96288.0,96276.0,0.15]
[1739296799195,0.00022408,96288.0,96282.0,0.155792]
[1739296799353,0.04612249,96291.0,96289.0,0.15578]
[1739296799753,0.04612249,96291.0,96285.0,0.207716]
[1739296799998,0.04612249,96291.0,96285.0,0.0415433]
[1739296800299,0.04612249,96291.0,96290.0,0.155779]
[1739296800946,0.04612249,96291.0,96289.0,0.160779]
[1739296801175,0.04612249,96291.0,96290.0,0.155779]
[1739296801294,0.04612249,96291.0,96289.0,0.009]
[1739296801655,0.155779,96290.0,96289.0,0.009]
[1739296802035,0.234779,96290.0,96289.0,0.004]
[1739296802417,0.0478,96289.0,96285.0,0.005]
[1739296802618,0.079,96288.0,96279.0,0.155796]
[1739296803244,0.079,96286.0,96277.0,0.155799]
[1739296803791,0.079,96286.0,96272.0,0.207744]
[1739296803792,0.279608,96272.0,96256.0,0.155833]
[1739296803997,0.1238,96272.0,96261.0,0.08270615]
[1739296804176,0.1238,96272.0,96264.0,0.20776]
[1739296804405,0.1238,96272.0,96261.0,0.08270615]
[1739296804406,0.1238,96272.0,96265.0,0.155818]
[1739296804607,0.1238,96272.0,96264.0,0.15582]
[1739296804826,0.1558,96278.0,96266.0,0.155817]
[1739296805207,0.20772,96284.0,96266.0,0.155817]
[1739296805360,0.155798,96279.0,96277.0,0.004]
[1739296805769,0.155798,96278.0,96277.0,0.004]
[1739296806484,0.155798,96278.0,96277.0,0.003]
[1739296806870,0.01591848,96286.0,96271.0,0.00550395]
[1739296807256,0.155798,96278.0,96277.0,0.004]
[1739296807909,0.276498,96278.0,96277.0,0.004]
[1739296808118,0.1207,96278.0,96277.0,0.004]
[1739296808537,0.276498,96278.0,96277.0,0.004]
[1739296808962,0.276498,96278.0,96277.0,0.005]
[1739296809469,0.1558,96277.0,96271.0,0.0007276]
[1739296809674,0.1207,96278.0,96271.0,0.0007276]
[1739296809878,0.276498,96278.0,96277.0,0.003]
[1739296810490,0.276498,96278.0,96271.0,0.0007276]
[1739296810637,0.155801,96277.0,96271.0,0.0007276]
[1739296810844,0.1207,96278.0,96271.0,0.0037276]
[1739296811466,0.276499,96278.0,96271.0,0.0077276]
[1739296811688,0.1207,96278.0,96271.0,0.0077276]
[1739296811855,0.1207,96278.0,96271.0,0.0037276]
[1739296812061,0.1207,96278.0,96271.0,0.0007276]
[1739296812278,0.155801,96277.0,96271.0,0.0037276]
[1739296812522,0.1207,96278.0,96271.0,0.0037276]
[1739296812879,0.2765,96278.0,96271.0,0.0067276]
[1739296813299,0.155801,96277.0,96271.0,0.0007276]
[1739296813495,0.155801,96277.0,96271.0,0.0037276]
[1739296813704,0.13667608,96278.0,96271.0,0.0007276]
[1739296813903,0.276499,96278.0,96271.0,0.0007276]
[1739296814055,0.276499,96278.0,96271.0,0.0037276]
[1739296814388,0.1558,96277.0,96271.0,0.0037276]
[1739296814631,0.1558,96277.0,96271.0,0.0077276]
[1739296814862,0.155804,96275.0,96271.0,0.0077276]
[1739296815067,0.155808,96272.0,96271.0,0.0037276]
[1739296815770,0.276508,96272.0,96271.0,0.0037276]
[1739296816049,0.276508,96272.0,96271.0,0.0007276]
[1739296816260,0.276508,96272.0,96271.0,0.0097276]
[1739296816461,0.37901165,96272.0,96271.0,0.0097276]
[1739296816612,0.4815153,96272.0,96271.0,0.0097276]
[1739296817040,0.81094065,96272.0,96271.0,0.0097276]
[1739296817243,0.30471,96271.0,96258.0,0.00022386]
[1739296817469,0.40721365,96271.0,96258.0,0.00022386]
[1739296819054,0.863639,96271.0,96258.0,0.00022386]
[1739296819290,0.96914265,96271.0,96258.0,0.00022386]
[1739296819464,0.96914265,96271.0,96270.0,0.00122365]
[1739296819665,0.281729,96259.0,96258.0,0.00022386]
[1739296820006,0.38423265,96259.0,96258.0,0.00022386]
[1739296820203,0.40723265,96259.0,96258.0,0.00022386]
[1739296820407,0.73908588,96259.0,96258.0,0.00022386]
[1739296820584,0.88908588,96259.0,96258.0,0.00022386]
[1739296820990,0.863658,96259.0,96258.0,0.00022386]
[1739296821200,0.868658,96259.0,96258.0,0.00022386]
[1739296821582,0.869658,96259.0,96258.0,0.00022386]
[1739296822177,0.846658,96259.0,96258.0,0.00022386]
[1739296822970,0.86297337,96259.0,96258.0,0.00022386]
[1739296826747,0.98847702,96259.0,96258.0,0.00022386]
[1739296827164,0.86297337,96259.0,96258.0,0.00022386]
[1739296828979,0.86246539,96259.0,96258.0,0.00022386]
[1739296837069,0.88546539,96259.0,96258.0,0.00022386]
[1739296838024,0.87946539,96259.0,96258.0,0.00022386]